bitfinex-derivatives/quotes_ETHF0:USTF0_20241020
["timestamp","ask_amount","ask_price","bid_price","bid_amount"]
[1729451884574,3.2078,2697.4,2697.3,8.54232674]
[1729451885271,3.2078,2697.4,2697.3,7.77719]
[1729451886068,1.44762518,2697.7,2697.3,7.4064]
[1729451886069,0.9649745,2697.7,2697.3,7.4064]
[1729451886265,0.9649745,2697.7,2697.6,7.77715]
[1729451886571,0.9649745,2697.7,2697.6,7.89307644]
[1729451886774,0.9649745,2697.7,2697.6,8.54226476]
[1729451888269,0.9649745,2697.7,2697.6,7.77715]
[1729451888471,0.9649745,2697.7,2697.6,8.07855812]
[1729451888669,0.9649745,2697.7,2697.6,8.54226293]
[1729451889069,0.9649745,2697.7,2697.6,8.07855812]
[1729451889267,0.9649745,2697.7,2697.6,7.77715]
[1729451890264,0.9649745,2697.7,2697.6,8.35678185]
[1729451890461,0.18550111,2697.7,2697.6,8.35678185]
[1729451890766,1.9274861,2697.9,2697.6,7.98603185]
[1729451890767,3.2078,2697.8,2697.6,7.98603185]
[1729451891075,3.2078,2697.8,2697.7,0.75524]
[1729451891263,3.39330121,2697.8,2697.7,8.16164]
[1729451892170,0.18550121,2697.8,2697.7,8.16164]
[1729451892362,3.2078,2697.8,2697.7,8.16164]
[1729451892558,3.39330121,2697.8,2697.7,8.16164]
[1729451895374,5.32078731,2697.8,2697.7,8.16164]
[1729451895566,3.39330121,2697.8,2697.7,8.16164]
[1729451897274,3.39330121,2697.8,2697.7,8.62534357]
[1729451897479,3.2078,2697.8,2697.7,8.92675088]
[1729451899675,3.2078,2697.8,2697.7,8.62534357]
[1729451899881,1.44791419,2697.9,2697.8,0.37072]
[1729451900077,4.84121089,2697.9,2697.8,7.89304595]
[1729451900381,5.21192089,2697.9,2697.8,8.35674975]
[1729451900777,4.84121089,2697.9,2697.8,8.35674975]
[1729451901076,4.84140401,2697.9,2697.8,8.35674975]
[1729451902775,1.63360401,2697.9,2697.8,8.35674975]
[1729451903178,4.84140401,2697.9,2697.8,8.35674975]
[1729451903380,3.3932967,2697.9,2697.8,8.24082173]
[1729451903676,4.84221125,2697.9,2697.8,8.35674716]
[1729451903876,4.84219248,2697.9,2697.8,8.35674716]
[1729451904083,4.84224539,2697.9,2697.8,8.35674716]
[1729451904272,3.3932967,2697.9,2697.8,8.35674716]
[1729451905579,5.21274128,2697.9,2697.8,8.35674716]
[1729451906978,3.3932967,2697.9,2697.8,8.35674793]
[1729451907269,5.21285391,2697.9,2697.8,8.35674793]
[1729451908677,3.3932967,2697.9,2697.8,8.35674793]
[1729451909173,5.21333676,2697.9,2697.8,8.54222803]
[1729451910282,5.21333676,2697.9,2697.8,8.2408225]
[1729451910481,5.21333676,2697.9,2697.8,8.07852505]
[1729451910682,5.21333676,2697.9,2697.8,8.54222371]
[1729451911978,2.00553676,2697.9,2697.8,8.54222371]
[1729451912278,5.02784006,2697.9,2697.8,8.54222371]
[1729451912478,3.3932967,2697.9,2697.8,7.77712]
[1729451913180,3.3932967,2697.9,2697.8,8.24081869]
[1729451914381,3.3932967,2697.9,2697.8,7.77712]
[1729451914583,0.1854967,2697.9,2697.8,8.24081779]
[1729451914776,2.11900732,2698.0,2697.9,0.37071]
[1729451914973,3.39329096,2698.0,2697.9,7.77711]
[1729451915173,5.3274354,2698.0,2697.9,7.77711]
[1729451916381,5.6981354,2698.0,2697.9,7.77711]
[1729451916584,5.3274354,2698.0,2697.9,7.77711]
[1729451918177,2.1196354,2698.0,2697.9,7.77711]
[1729451918484,5.3274354,2698.0,2697.9,7.77711]
[1729451919287,5.32743369,2698.0,2697.9,7.77711]
[1729451919486,5.61715763,2698.0,2697.9,8.54220576]
[1729451919678,7.62393528,2698.0,2697.9,8.54220576]
[1729451919873,7.62393252,2698.0,2697.9,8.54220576]
[1729451921782,7.62393252,2698.0,2697.9,7.77711]
[1729451921987,7.62393252,2698.0,2697.9,8.35672766]
[1729451922182,7.62393252,2698.0,2697.9,8.54220531]
[1729451923290,5.21457489,2698.0,2697.9,8.54220531]
[1729451923489,2.00677489,2698.0,2697.9,8.54220531]
[1729451923989,5.21457489,2698.0,2697.9,8.54220531]
[1729451924680,3.2078,2698.0,2697.9,8.54220531]
[1729451924887,5.21500152,2698.0,2697.9,8.54220531]
[1729451925587,5.21500152,2698.0,2697.9,7.77711]
[1729451926193,5.21500152,2698.0,2697.9,8.54225011]
[1729451926584,5.21500152,2698.0,2697.9,7.77711]
[1729451927086,2.00720152,2698.0,2697.9,7.77711]
[1729451927292,5.21500152,2698.0,2697.9,7.77711]
[1729451927586,3.39328801,2698.0,2697.9,7.77711]
[1729451928680,0.18548801,2698.0,2697.9,7.77711]
[1729451928880,3.2078,2698.0,2697.9,7.77711]
[1729451929086,5.21554396,2698.0,2697.9,7.77711]
[1729451929690,3.39328885,2698.0,2697.9,7.77711]
[1729451930592,5.2160188,2698.0,2697.9,7.77711]
[1729451931991,5.5867188,2698.0,2697.9,7.77711]
[1729451932587,5.2160188,2698.0,2697.9,7.77711]
[1729451932986,3.39328885,2698.0,2697.9,7.77711]
[1729451933299,5.32915982,2698.0,2697.9,8.3567473]
[1729451933595,5.32915982,2698.0,2697.9,9.29392644]
[1729451934395,2.12135982,2698.0,2697.9,9.40984788]
[1729451934582,0.18548885,2698.0,2697.9,9.40984788]
[1729451934787,0.18548885,2698.0,2697.9,9.59532272]
[1729451935396,0.18548885,2698.0,2697.9,8.65814358]
[1729451935993,0.18548885,2698.0,2697.9,9.63109643]
[1729451935994,2.12135982,2698.0,2697.9,9.63109643]
[1729451939403,2.12134838,2698.0,2697.9,9.63109643]
[1729451939592,2.12134838,2698.0,2697.9,9.16738706]
[1729451939902,2.12134838,2698.0,2697.9,9.63108065]
[1729451940304,0.18547741,2698.0,2697.9,9.63108065]
[1729451940490,1.93587097,2698.1,2697.9,9.26037065]
[1729451940693,1.93587097,2698.1,2698.0,9.0619178]
[1729451940891,1.93587097,2698.1,2698.0,9.4480178]
[1729451941796,1.93587097,2698.1,2698.0,8.68292339]
[1729451942000,2.12134429,2698.1,2698.0,8.68292339]
[1729451942602,5.32914429,2698.1,2698.0,8.68292339]
[1729451942794,5.21577846,2698.1,2698.0,8.68292339]
[1729451942997,3.2078,2698.1,2698.0,8.68292339]
[1729451944010,5.21583364,2698.1,2698.0,8.68292339]
[1729451945899,5.21583364,2698.1,2698.0,8.567]
[1729451946099,2.00803364,2698.1,2698.0,8.68292354]
[1729451946299,5.21583364,2698.1,2698.0,8.68292354]
[1729451947796,5.21571479,2698.1,2698.0,8.68292354]
[1729451949505,5.21571479,2698.1,2698.0,8.68292402]
[1729451949800,3.39327766,2698.1,2698.0,9.44802646]
[1729451950101,3.39327766,2698.1,2698.0,9.26254663]
[1729451950500,3.39327766,2698.1,2698.0,9.44802613]
[1729451950696,3.39327766,2698.1,2698.0,9.26254663]
[1729451951391,3.39327766,2698.1,2698.0,9.44802574]
[1729451951593,3.39327766,2698.1,2698.0,9.26254663]
[1729451951993,0.18547766,2698.1,2698.0,9.26254663]
[1729451952306,3.39327766,2698.1,2698.0,9.26254663]
[1729451952698,3.39327965,2698.1,2698.0,9.44802652]
[1729451953103,3.39327965,2698.1,2698.0,9.44802613]
[1729451953399,3.39327965,2698.1,2698.0,9.26254624]
[1729451953603,3.39327965,2698.1,2698.0,9.44802638]
[1729451954496,0.18547965,2698.1,2698.0,9.44802638]
[1729451954696,3.39327965,2698.1,2698.0,9.44802638]
[1729451956302,0.18547965,2698.1,2698.0,9.44802638]
[1729451956710,3.39327965,2698.1,2698.0,9.14661963]
[1729451956898,3.39327965,2698.1,2698.0,9.44802183]
[1729451958314,5.3288728,2698.1,2698.0,9.44802183]
[1729451958612,3.39327965,2698.1,2698.0,9.44802183]
[1729451958999,3.39327965,2698.1,2698.0,0.11592392]
[1729451959000,5.99762631,2698.1,2698.0,0.11592392]
[1729451959208,8.37862581,2698.1,2698.0,0.11592392]
[1729451959414,5.9594795,2698.1,2698.0,0.11592392]
[1729451960013,0.37074,2697.7,2697.6,0.37074]
[1729451960309,3.76401965,2697.7,2697.6,7.89308552]
[1729451960508,3.76401965,2697.7,2697.6,8.47280924]
[1729451960711,4.16451965,2697.7,2697.6,8.93658863]
[1729451961411,4.16451965,2697.7,2697.6,8.10206924]
[1729451961805,4.16451965,2697.7,2697.6,7.63829026]
[1729451962406,4.16455899,2697.7,2697.6,7.63829026]
[1729451963914,4.16455899,2697.7,2697.6,7.63829644]
[1729451964304,0.95675899,2697.7,2697.6,7.63829644]
[1729451964510,5.91224696,2697.7,2697.6,7.52234822]
[1729451964821,5.98497863,2697.7,2697.6,7.4064]
[1729451965513,2.77717863,2697.7,2697.6,7.4064]
[1729451966306,0.37076,2697.6,2697.4,0.76677]
[1729451966517,0.18551899,2697.5,2697.4,0.76677]
[1729451966713,0.18551899,2697.5,2697.4,0.88271802]
[1729451966916,0.18551899,2697.5,2697.4,8.28911802]
[1729451967112,3.2078,2697.5,2697.4,8.28911802]
[1729451967411,3.39331699,2697.5,2697.4,8.28911807]
[1729451967607,3.39331699,2697.5,2697.4,8.17317]
[1729451967802,3.39331699,2697.5,2697.4,8.28911806]
[1729451968312,3.39331699,2697.5,2697.4,8.17317]
[1729451968616,5.32524881,2697.5,2697.4,8.17317]
[1729451969716,2.11744881,2697.5,2697.4,8.28911479]
[1729451969918,1.93193182,2697.5,2697.4,8.28911479]
[1729451971125,1.93193182,2697.5,2697.4,8.17317]
[1729451971709,1.93193182,2697.5,2697.4,8.28911262]
[1729451972118,2.11743989,2697.5,2697.4,8.59056322]
[1729451972306,1.93193182,2697.5,2697.4,9.05433331]
[1729451973016,1.44841806,2697.6,2697.5,0.37076]
[1729451973220,1.44841806,2697.6,2697.5,0.60264516]
[1729451973419,1.44841806,2697.6,2697.5,8.00904516]
[1729451979220,1.44841806,2697.6,2697.5,7.89310254]
[1729451979413,1.44841806,2697.6,2697.5,8.00904258]
[1729451979617,1.44841806,2697.6,2697.5,8.00904014]
[1729451979814,2.11743598,2697.7,2697.5,7.5223401]
[1729451980020,1.93193182,2697.7,2697.6,7.77715]
[1729451980321,2.1174374,2697.7,2697.6,7.77715]
[1729451980517,5.3252374,2697.7,2697.6,7.77715]
[1729451981818,5.32523739,2697.7,2697.6,7.77715]
[1729451983121,3.57852,2697.9,2697.6,7.4064]
[1729451983312,3.57852,2697.9,2697.7,7.77713]
[1729451983313,0.37072,2697.9,2697.7,7.77713]
[1729451983524,3.2078,2697.8,2697.7,7.77713]
[1729451984218,5.21031696,2697.8,2697.7,7.77713]
[1729451984416,2.00251696,2697.8,2697.7,7.77713]
[1729451985221,5.21031696,2697.8,2697.7,7.77713]
[1729451986522,2.00251696,2697.8,2697.7,7.77713]
[1729451987018,2.00237576,2697.8,2697.7,7.4064]
[1729451987320,2.00237576,2697.8,2697.7,7.89308094]
[1729451987916,2.11501666,2697.8,2697.7,7.89308094]
[1729451990421,5.32281666,2697.8,2697.7,7.89308094]
[1729451991024,2.11501666,2697.8,2697.7,7.77714]
[1729451991221,5.32281666,2697.8,2697.7,7.89308275]
[1729451993638,2.11501666,2697.8,2697.7,7.89308275]
[1729451994129,5.32281666,2697.8,2697.7,7.89308275]
[1729451994729,5.32281666,2697.8,2697.7,7.893082]
[1729451994936,5.21095145,2697.8,2697.7,7.893082]
[1729451995722,2.00315145,2697.8,2697.7,7.893082]
[1729451996227,5.21095145,2697.8,2697.7,7.893082]
[1729451996430,2.00315145,2697.8,2697.7,7.893082]
[1729451996829,2.00348657,2697.8,2697.7,7.893082]
[1729451997033,5.21128657,2697.8,2697.7,7.893082]
[1729451997229,5.21128657,2697.8,2697.7,8.00902427]
[1729451998322,2.00348657,2697.8,2697.7,8.00902427]
[1729451998626,5.21128657,2697.8,2697.7,8.00902418]
[1729452000922,5.21195702,2697.8,2697.7,8.00902418]
[1729452002428,5.21195702,2697.8,2697.7,7.77714]
[1729452004229,3.3933058,2697.8,2697.7,8.27988041]
[1729452004427,5.2143784,2697.8,2697.7,8.27988041]
[1729452004632,5.2143784,2697.8,2697.7,9.25117647]
[1729452005041,2.00622601,2697.8,2697.7,9.71491871]
[1729452005241,0.1854969,2697.8,2697.7,9.25117647]
[1729452005432,2.60062184,2697.9,2697.8,0.37072]
[1729452005742,2.41512814,2697.9,2697.8,7.89306041]
[1729452005930,4.79117484,2697.9,2697.8,7.89306041]
[1729452006133,4.42046484,2697.9,2697.8,7.89306041]
[1729452008939,4.42046484,2697.9,2697.8,7.77712]
[1729452009142,4.42046484,2697.9,2697.8,7.89305649]
[1729452009344,4.42046484,2697.9,2697.8,8.00899304]
[1729452009548,2.0053367,2697.9,2697.8,8.65823291]
[1729452009741,4.42082709,2698.0,2697.8,8.28751291]
[1729452009951,2.41512814,2698.0,2697.9,8.88082815]
[1729452010244,2.00548264,2698.0,2697.9,8.88082815]
[1729452012540,2.00548264,2698.0,2697.9,8.76489166]
[1729452012741,2.00548264,2698.0,2697.9,8.88079726]
[1729452014537,2.00489185,2698.0,2697.9,8.51008726]
[1729452014746,2.00489185,2698.0,2697.9,8.88079726]
[1729452016452,2.00489185,2698.0,2697.9,8.41707242]
[1729452016950,2.00489185,2698.0,2697.9,8.88079973]
[1729452017152,2.00489185,2698.0,2697.9,8.41707242]
[1729452017354,2.00489185,2698.0,2697.9,8.30114121]
[1729452017556,2.00489185,2698.0,2697.9,8.18521]
[1729452019456,2.00460427,2698.0,2697.9,8.18521]
[1729452022055,2.37530427,2698.0,2697.9,8.18521]
[1729452022753,2.00460427,2698.0,2697.9,8.18521]
[1729452023855,2.37530427,2698.0,2697.9,8.18521]
[1729452024242,2.37588951,2698.0,2697.9,8.18521]
[1729452024448,2.00518951,2698.0,2697.9,8.30114213]
[1729452024645,2.37588951,2698.0,2697.9,8.41707427]
[1729452025046,5.58368951,2698.0,2697.9,8.41707427]
[1729452025647,5.21298951,2698.0,2697.9,8.41707427]
[1729452026748,2.37588951,2698.0,2697.9,8.41707427]
[1729452027459,2.37588951,2698.0,2697.9,8.18521]
[1729452027662,2.00518951,2698.0,2697.9,8.18521]
[1729452027958,2.00518951,2698.0,2697.9,8.41707514]
[1729452028547,0.18549129,2698.0,2697.9,8.41707514]
[1729452028751,0.18549129,2698.0,2697.9,10.03757122]
[1729452029052,0.1854768,2698.0,2697.9,9.66686122]
[1729452029350,0.1854768,2698.0,2697.9,10.03754618]
[1729452031163,0.1854768,2698.0,2697.9,9.73613229]
[1729452031364,0.1854768,2698.0,2697.9,9.06622781]
[1729452031658,0.1854768,2698.0,2697.9,8.95029524]
[1729452032160,4.41973996,2698.0,2697.9,8.95029524]
[1729452032661,4.41973996,2698.0,2697.9,8.18521]
[1729452033155,2.3754972,2698.0,2697.9,8.18521]
[1729452034055,2.37589696,2698.0,2697.9,8.18521]
[1729452038664,2.00519696,2698.0,2697.9,8.18521]
[1729452038861,2.37589696,2698.0,2697.9,8.18521]
[1729452039667,0.3707,2698.0,2697.9,8.76486248]
[1729452039966,0.3707,2698.0,2697.9,8.88079352]
[1729452040168,2.49015108,2698.0,2697.9,8.88079352]
[1729452041361,5.51246146,2698.0,2697.9,8.88079352]
[1729452042164,5.51246146,2698.0,2697.9,8.51008352]
[1729452042770,5.51246146,2698.0,2697.9,8.88079352]
[1729452043365,5.51246146,2698.0,2697.9,8.51008352]
[1729452043567,3.5785,2698.0,2697.9,0.11593104]
[1729452043766,3.9513,2698.0,2697.9,0.11593104]
[1729452046375,3.5806,2698.0,2697.8,0.699]
[1729452046578,4.79477464,2697.9,2697.8,0.699]
[1729452046968,4.79477464,2697.9,2697.8,0.93087844]
[1729452048775,8.00257464,2697.9,2697.8,0.93087844]
[1729452051684,8.0025348,2697.9,2697.8,0.93087844]
[1729452053388,8.0025348,2697.9,2697.8,8.33727844]
[1729452053971,8.0025348,2697.9,2697.8,8.1054]
[1729452054177,8.0025348,2697.9,2697.8,8.3372862]
[1729452054381,8.0025348,2697.9,2697.8,8.2213431]
[1729452055072,8.0025348,2697.9,2697.8,8.1054]
[1729452055477,5.58510184,2697.9,2697.8,8.1054]
[1729452056673,5.58477963,2697.9,2697.8,8.1054]
[1729452057572,2.37697963,2697.9,2697.8,8.1054]
[1729452057781,5.58477963,2697.9,2697.8,8.1054]
[1729452057982,2.37697963,2697.9,2697.8,8.1054]
[1729452058379,5.58477963,2697.9,2697.8,8.1054]
[1729452058977,2.37697963,2697.9,2697.8,8.1054]
[1729452059176,5.58477963,2697.9,2697.8,8.1054]
[1729452062186,5.58477963,2697.9,2697.8,8.22134334]
[1729452062787,8.00139423,2697.9,2697.8,8.22134334]
[1729452064188,8.00139423,2697.9,2697.8,8.22134407]
[1729452064383,5.58477963,2697.9,2697.8,8.22134407]
[1729452064878,8.00112973,2697.9,2697.8,8.59206407]
[1729452065080,8.00112973,2697.9,2697.8,8.22134407]
[1729452065688,4.79332973,2697.9,2697.8,8.22134407]
[1729452066083,8.00112973,2697.9,2697.8,8.22134407]
[1729452066283,8.00112973,2697.9,2697.8,8.59206407]
[1729452066482,5.58451513,2697.9,2697.8,8.59206407]
[1729452066792,5.58451513,2697.9,2697.8,8.22134407]
[1729452066793,8.00112973,2697.9,2697.8,8.22134407]
[1729452066995,5.58451513,2697.9,2697.8,8.22134407]
[1729452067989,2.37671513,2697.9,2697.8,8.22134407]
[1729452068188,5.58451513,2697.9,2697.8,8.22134407]
[1729452070191,5.58451513,2697.9,2697.8,8.1054]
[1729452070388,5.58451513,2697.9,2697.8,8.47612]
[1729452071393,2.37671513,2697.9,2697.8,8.47612]
[1729452071892,5.58451513,2697.9,2697.8,8.1054]
[1729452073792,5.58451513,2697.9,2697.8,8.47612]
[1729452074095,5.58451513,2697.9,2697.8,8.1054]
[1729452076299,5.58451513,2697.9,2697.8,8.47612]
[1729452076990,5.58451513,2697.9,2697.8,8.1054]
[1729452077197,5.58451513,2697.9,2697.8,8.22134242]
[1729452077896,8.00241248,2697.9,2697.8,8.22134242]
[1729452078795,4.79461248,2697.9,2697.8,8.22134242]
[1729452078988,8.00241248,2697.9,2697.8,8.22134242]
[1729452079288,8.00241248,2697.9,2697.8,8.33728537]
[1729452079501,8.00372817,2697.9,2697.8,8.33728537]
[1729452079805,4.79592817,2697.9,2697.8,8.33728537]
[1729452080095,8.00372817,2697.9,2697.8,8.1054]
[1729452081392,8.00372817,2697.9,2697.8,8.33728612]
[1729452081905,8.00372817,2697.9,2697.8,8.70800612]
[1729452082084,8.00372817,2697.9,2697.8,8.70800578]
[1729452082398,8.00372817,2697.9,2697.8,8.33728578]
[1729452083298,5.58583082,2697.9,2697.8,8.33728578]
[1729452083697,5.58583082,2697.9,2697.8,8.70800578]
[1729452083894,8.00505063,2697.9,2697.8,8.70800578]
[1729452084092,5.21512082,2697.9,2697.8,8.70800578]
[1729452084300,7.63430781,2697.9,2697.8,8.70800578]
[1729452084598,5.21512082,2697.9,2697.8,9.17174914]
[1729452084901,5.21512082,2697.9,2697.8,9.17174731]
[1729452085096,5.58583082,2697.9,2697.8,8.47612]
[1729452085492,5.21512082,2697.9,2697.8,8.47612]
[1729452086299,5.58583082,2697.9,2697.8,8.47612]
[1729452086901,2.37803082,2697.9,2697.8,8.47612]
[1729452087102,5.58583082,2697.9,2697.8,8.47612]
[1729452087301,5.21512082,2697.9,2697.8,8.47612]
[1729452088002,5.21512082,2697.9,2697.8,8.59205627]
[1729452088791,5.58583082,2697.9,2697.8,8.59205627]
[1729452089196,5.58583082,2697.9,2697.8,8.47612]
[1729452089404,5.21512082,2697.9,2697.8,8.47612]
[1729452090106,2.00732082,2697.9,2697.8,8.47612]
[1729452090605,3.57851,2697.9,2697.8,8.47612]
[1729452090803,5.58583082,2697.9,2697.8,8.47612]
[1729452091204,5.21512082,2697.9,2697.8,8.47612]
[1729452092406,5.21512082,2697.9,2697.8,8.93987329]
[1729452092701,5.21512082,2697.9,2697.8,9.17174993]
[1729452093403,2.00732082,2697.9,2697.8,9.17174993]
[1729452093622,5.21512082,2697.9,2697.8,8.70799758]
[1729452093908,5.21512082,2697.9,2697.8,9.17175274]
[1729452094107,5.21667737,2697.9,2697.8,1.76535274]
[1729452094301,5.21667737,2697.9,2697.8,9.17175274]
[1729452096510,2.00887737,2697.9,2697.8,9.17175274]
[1729452096710,5.58738737,2697.9,2697.8,9.17175274]
[1729452096905,5.58738737,2697.9,2697.8,8.47612]
[1729452098113,5.58738737,2697.9,2697.8,9.17176091]
[1729452098600,2.37958737,2697.9,2697.8,9.17176091]
[1729452098804,0.37071,2697.9,2697.8,9.17176091]
[1729452099007,5.58696393,2697.9,2697.8,9.17176091]
[1729452099411,5.58696393,2697.9,2697.8,9.05582076]
[1729452099710,5.58696393,2697.9,2697.8,8.47612]
[1729452099912,5.21625393,2697.9,2697.8,8.47612]
[1729452101205,2.00845393,2697.9,2697.8,8.47612]
[1729452101517,5.21625393,2697.9,2697.8,8.47612]
[1729452102309,3.2078,2697.9,2697.8,8.47612]
[1729452103118,3.26506077,2698.0,2697.8,8.1054]
[1729452103308,3.26506077,2698.0,2697.9,7.77711]
[1729452103614,6.47286077,2698.0,2697.9,8.19941]
[1729452105010,3.5785,2698.0,2697.9,8.19941]
[1729452105216,0.3707,2698.0,2697.9,8.19941]
[1729452105418,3.5785,2698.0,2697.9,8.19941]
[1729452106912,3.5785,2698.0,2697.9,8.4312874]
[1729452109216,5.58721904,2698.0,2697.9,8.4312874]
[1729452109626,2.37941904,2698.0,2697.9,8.4312874]
[1729452109811,5.58721904,2698.0,2697.9,8.4312874]
[1729452112121,5.58721904,2698.0,2697.9,8.3153487]
[1729452112425,5.58721904,2698.0,2697.9,8.43128761]
[1729452112722,2.37941904,2698.0,2697.9,8.43128761]
[1729452113223,5.58721904,2698.0,2697.9,8.43128761]
[1729452113819,5.58721904,2698.0,2697.9,7.63827761]
[1729452114117,5.58721904,2698.0,2697.9,7.77711]
[1729452114316,11.22319019,2698.0,2697.9,8.47611]
[1729452114622,11.40869437,2698.0,2697.9,8.47611]
[1729452115023,8.20089437,2698.0,2697.9,8.47611]
[1729452115220,11.40869437,2698.0,2697.9,8.47611]
[1729452115615,9.39997533,2698.0,2697.9,8.47611]
[1729452115820,6.96677967,2698.0,2697.9,8.47611]
[1729452116023,11.89281512,2698.0,2697.9,8.47611]
[1729452122513,8.50453545,2698.0,2697.9,8.47611]
[1729452122827,13.063824,2698.0,2697.9,7.17761991]
[1729452123214,13.063824,2698.0,2697.9,7.54832991]
[1729452123622,9.856024,2698.0,2697.9,7.54832991]
[1729452123821,13.063824,2698.0,2697.9,7.54832991]
[1729452124432,9.856024,2698.0,2697.9,7.54832991]
[1729452124821,13.063824,2698.0,2697.9,7.54832991]
[1729452125028,13.05340191,2698.0,2697.9,7.54832991]
[1729452126629,12.36767118,2698.0,2697.9,7.54832991]
[1729452126825,8.49411336,2698.0,2697.9,7.54832991]
[1729452127136,13.02640181,2698.0,2697.9,7.54832991]
[1729452127434,9.81860181,2698.0,2697.9,7.54832991]
[1729452127630,13.02640181,2698.0,2697.9,7.54832991]
[1729452127932,9.81860181,2698.0,2697.9,7.54832991]
[1729452128432,13.02640181,2698.0,2697.9,7.54832991]
[1729452129038,9.81860181,2698.0,2697.9,7.54832991]
[1729452129226,13.02640181,2698.0,2697.9,7.54832991]
[1729452129935,8.49422971,2698.0,2697.9,7.54832991]
[1729452130442,5.28642971,2698.0,2697.9,7.54832991]
[1729452130823,8.49422971,2698.0,2697.9,7.54832991]
[1729452131238,11.88374104,2698.0,2697.9,7.54832991]
[1729452131730,8.49422971,2698.0,2697.9,7.54832991]
[1729452132132,8.49422971,2698.0,2697.9,0.37071]
[1729452132330,8.49422971,2698.0,2697.9,7.54832991]
[1729452132835,5.28642971,2698.0,2697.9,7.54832991]
[1729452133033,8.49422971,2698.0,2697.9,7.54832991]
[1729452134637,5.28642971,2698.0,2697.9,7.54832991]
[1729452135025,11.88374104,2698.0,2697.9,7.54832991]
[1729452135441,8.67594104,2698.0,2697.9,7.54832991]
[1729452135636,11.88374104,2698.0,2697.9,7.54832991]
[1729452135837,8.49422971,2698.0,2697.9,7.54832991]
[1729452136332,11.88374104,2698.0,2697.9,7.54832991]
[1729452136532,8.67594104,2698.0,2697.9,7.54832991]
[1729452136734,11.88374104,2698.0,2697.9,7.54832991]
[1729452137339,8.49422971,2698.0,2697.9,7.54832991]
[1729452138143,17.36913305,2698.0,2697.9,7.54832991]
[1729452138345,14.16133305,2698.0,2697.9,7.54832991]
[1729452138534,17.36913305,2698.0,2697.9,7.54832991]
[1729452139145,13.02759189,2698.0,2697.9,7.54832991]
[1729452139638,17.36948761,2698.0,2697.9,7.54832991]
[1729452139833,14.16168761,2698.0,2697.9,7.54832991]
[1729452140141,17.36948761,2698.0,2697.9,7.54832991]
[1729452140346,14.16168761,2698.0,2697.9,7.54832991]
[1729452140533,17.36948761,2698.0,2697.9,7.54832991]
[1729452141041,14.16168761,2698.0,2697.9,7.54832991]
[1729452142042,17.36948761,2698.0,2697.9,7.54832991]
[1729452143634,14.16168761,2698.0,2697.9,7.54832991]
[1729452144040,17.36948761,2698.0,2697.9,7.54832991]
[1729452144348,13.02794645,2698.0,2697.9,7.54832991]
[1729452144743,17.36948761,2698.0,2697.9,7.54832991]
[1729452144944,16.22640093,2698.0,2697.9,7.54832991]
[1729452145144,11.88485977,2698.0,2697.9,7.54832991]
[1729452146256,8.67705977,2698.0,2697.9,7.54832991]
[1729452147047,11.88485977,2698.0,2697.9,7.54832991]
[1729452147553,8.67705977,2698.0,2697.9,7.54832991]
[1729452147951,11.88485977,2698.0,2697.9,7.54832991]
[1729452148451,8.67705977,2698.0,2697.9,7.54832991]
[1729452148653,11.88485977,2698.0,2697.9,7.54832991]
[1729452149146,8.67705977,2698.0,2697.9,7.54832991]
[1729452149452,11.88485977,2698.0,2697.9,7.54832991]
[1729452149645,8.67705977,2698.0,2697.9,7.54832991]
[1729452149845,11.88485977,2698.0,2697.9,7.54832991]
[1729452150155,11.88485977,2698.0,2697.9,0.37071]
[1729452150360,8.67705977,2698.0,2697.9,7.54832991]
[1729452151052,8.49458427,2698.0,2697.9,7.54832991]
[1729452151652,11.88485977,2698.0,2697.9,7.54832991]
[1729452152946,17.36961103,2698.0,2697.9,7.54832991]
[1729452153153,14.16181103,2698.0,2697.9,6.24983014]
[1729452153355,17.36961103,2698.0,2697.9,6.24983014]
[1729452153750,14.16181103,2698.0,2697.9,6.62054014]
[1729452153956,17.36961103,2698.0,2697.9,6.62054014]
[1729452154153,13.02806987,2698.0,2697.9,6.62054014]
[1729452154349,13.01724271,2698.0,2697.9,6.62054014]
[1729452154862,9.80944271,2698.0,2697.9,6.62054014]
[1729452155053,13.01724271,2698.0,2697.9,6.62054014]
[1729452155750,16.98808387,2698.0,2697.9,6.62054014]
[1729452156651,13.01724271,2698.0,2697.9,6.62054014]
[1729452158961,17.35878387,2698.0,2697.9,6.62054014]
[1729452159163,13.01724271,2698.0,2697.9,6.62054014]
[1729452159359,13.0174963,2698.0,2697.9,6.62054014]
[1729452160055,8.4840107,2698.0,2697.9,6.62054014]
[1729452161162,5.2762107,2698.0,2697.9,6.62054014]
[1729452161455,8.4840107,2698.0,2697.9,6.62054014]
[1729452162354,5.2762107,2698.0,2697.9,6.62054014]
[1729452162555,8.4840107,2698.0,2697.9,6.62054014]
[1729452162963,5.2762107,2698.0,2697.9,6.62054014]
[1729452163165,8.4840107,2698.0,2697.9,6.62054014]
[1729452163457,8.10250828,2698.0,2697.9,6.62054014]
[1729452163662,5.19607509,2698.0,2697.9,6.62054014]
[1729452164064,5.56677509,2698.0,2697.9,6.62054014]
[1729452164463,2.35897509,2698.0,2697.9,6.62054014]
[1729452164964,5.56677509,2698.0,2697.9,6.62054014]
[1729452165560,5.19607509,2698.0,2697.9,6.62054014]
[1729452166770,1.98827509,2698.0,2697.9,6.62054014]
[1729452167066,5.56677509,2698.0,2697.9,6.62054014]
[1729452167461,5.56677509,2698.0,2697.9,6.73647631]
[1729452167663,5.56677509,2698.0,2697.9,6.62054014]
[1729452167866,5.19607509,2698.0,2697.9,6.7364761]
[1729452168266,5.19607509,2698.0,2697.9,7.20019725]
[1729452168467,5.19607509,2698.0,2697.9,7.31612729]
[1729452168661,5.19607509,2698.0,2697.9,7.20019725]
[1729452168963,5.19607509,2698.0,2697.9,7.31612832]
[1729452169165,5.1909973,2698.0,2697.9,7.20019725]
[1729452169767,1.9831973,2698.0,2697.9,7.20019725]
[1729452170863,1.9831973,2698.0,2697.9,7.3161271]
[1729452171061,1.9831973,2698.0,2697.9,7.20019725]
[1729452171674,1.9831973,2698.0,2697.9,7.20019863]
[1729452173469,1.9831973,2698.0,2697.9,6.7364761]
[1729452173973,1.98040166,2698.0,2697.9,6.3657661]
[1729452174174,1.98040166,2698.0,2697.9,6.7364761]
[1729452174570,1.98040166,2698.0,2697.9,6.62054014]
[1729452175268,4.85140281,2698.0,2697.9,6.62054014]
[1729452175669,8.24142849,2698.0,2697.9,6.62054014]
[1729452176875,4.85140281,2698.0,2697.9,6.62054014]
[1729452181273,4.66591645,2698.0,2697.9,6.62054014]
[1729452181979,2.90434358,2698.0,2697.9,6.62054014]
[1729452182291,4.85140281,2698.0,2697.9,6.62054014]
[1729452182579,2.90414456,2698.0,2697.9,7.31609279]
[1729452182882,7.75554737,2698.0,2697.9,7.31609279]
[1729452183081,7.75554737,2698.0,2697.9,7.20016735]
[1729452183377,4.39992623,2698.0,2697.9,7.20016735]
[1729452183584,1.98040166,2698.0,2697.9,7.20016735]